Organisation Name,Organisation Code,Organisational Unit,Service Category Label,Procurement category,Supplier Name,Supplier Other ID,Payment Date,Transaction Number,Amount (�),Purpose
Eden District Council,http://opendatacommunities.org/id/district-council/eden,02/01/2018,161059,930,RIBA PUBLICATIONS,RIB001,Technical Services Manager,Subscriptions & levies,NBS SUBSCRIPTION RENEWAL 17/18,Technical Services
Eden District Council,http://opendatacommunities.org/id/district-council/eden,05/01/2018,161589,11572.5,TWEDDELL & SLATER CONSULTING ENGINEERS,TWE002,Technical Services Manager,Building works,1ST ACCOUNT  TENDER STAGE,Land Management
Eden District Council,http://opendatacommunities.org/id/district-council/eden,05/01/2018,162105,1306.6,UNITED UTILITIES WATER PLC,UNI024,Environmental Services,Professional fees,FS/WT ANALYSIS OCT 17,Other Environmental Health
Eden District Council,http://opendatacommunities.org/id/district-council/eden,05/01/2018,162111,850,ASTUN TECHNOLOGY LIMITED,AST004,Information Technology Manager,GIS Platform,CONSULATNCY PHASE 1 MERITEC INTEGRATION,Information Technology
Eden District Council,http://opendatacommunities.org/id/district-council/eden,05/01/2018,162254,8666,KESWICK MUSEUM AND ART GALLERY,KES006,Commercial Services Manager,Ready to Borrow Expenditure,READY TO BORROW ACE GRANT,Museum
Eden District Council,http://opendatacommunities.org/id/district-council/eden,05/01/2018,162265,624,ELECTRICITY NORTH WEST LTD,ELE005,Technical Services Manager,FL Day Works,LAMP DISC HUNTERS LODGE KIRKOSWALD,Footway Lighting
Eden District Council,http://opendatacommunities.org/id/district-council/eden,05/01/2018,162271,800,JAYNE WILLETTS & CO SOLICITORS,JAY002,Legal Services Manager,Professional fees,PROFESSIONAL REGULATION ADVICE,Legal Services
Eden District Council,http://opendatacommunities.org/id/district-council/eden,05/01/2018,162282,891.54,RENTOKIL INITIAL PEST CONTROL,REN009,Environmental Services,Pest Control,SERVICE PERIOD 01/01/18-31/01/18,Pest Control
Eden District Council,http://opendatacommunities.org/id/district-council/eden,05/01/2018,162346,782,PRINT IMAGE NETWORK LTD,PRI011,Legal Services Manager,Printing and stationary,PENRITH NORTH BALLOT BOOKS,Elections
Eden District Council,http://opendatacommunities.org/id/district-council/eden,05/01/2018,162347,1206,PRINT IMAGE NETWORK LTD,PRI011,Legal Services Manager,Printing and stationary,PENRITH DISTRICT WARD ELECTION PACK,Elections
Eden District Council,http://opendatacommunities.org/id/district-council/eden,05/01/2018,162364,2550,MESSAGELABS LTD,MES001,Information Technology Manager,Software � maintenance,EMAIL SAFEGAURD,Information Technology
Eden District Council,http://opendatacommunities.org/id/district-council/eden,05/01/2018,162365,1429.85,BOTTOMLINE TECHNOLOGIES EUROPE LIMITED,BOT002,Financial Services Manager,Software � maintenance,4 X C SERIES CONTRACTS 2017-18,Financial Services
Eden District Council,http://opendatacommunities.org/id/district-council/eden,05/01/2018,162366,2500,FAIRHILL COMMUNITY GROUP,FAI014,Commercial Services Manager,Balance Sheet entry BS,ECF194 FINAL PAYMENT,Community
Eden District Council,http://opendatacommunities.org/id/district-council/eden,05/01/2018,162368,1166.93,CUMBRIA COUNTY COUNCIL,CCC002,Environmental Services,Professional fees,DATA LICENCE CONTRIBUTION 2017/18,Housing Delivery
Eden District Council,http://opendatacommunities.org/id/district-council/eden,05/01/2018,162371,1183.51,CHUBB ELECTRONIC SECURITY,CHU001,Financial Services Manager,Balance brought forward BS,ANNUAL CONTRACT 2018/19,Administrative Buildings
Eden District Council,http://opendatacommunities.org/id/district-council/eden,05/01/2018,162437,625,NEWBIGGIN-ON-LUNE PUBLIC HALL,NEW011,Commercial Services Manager,Balance Sheet entry BS,FINAL 25% EDEN COMMUNITY FUND,Community
Eden District Council,http://opendatacommunities.org/id/district-council/eden,05/01/2018,162444,15000,MCDOUGALL BUILDING CONTRACTORS,MCD002,Environmental Services,Capital grants,INTERIM PAYMENT ,1996 Mandatory Renovation Grants
Eden District Council,http://opendatacommunities.org/id/district-council/eden,05/01/2018,162445,3400,2040 TRAINING LTD,TRA018,Human Resources Manager,In house training,TRAINING DATA PROTECTION,Staff Development
Eden District Council,http://opendatacommunities.org/id/district-council/eden,05/01/2018,162500,3751.41,CUMBRIA WASTE RECYCLING LTD,CUM022,Technical Services Manager,material price fluctuations,F-08-17/18,Recycling
Eden District Council,http://opendatacommunities.org/id/district-council/eden,05/01/2018,162502,740,IODA LTD,IOD001,Human Resources Manager,Workforce Development Plan Activity,E & D TRAINING 5/12/17,Staff Development
Eden District Council,http://opendatacommunities.org/id/district-council/eden,05/01/2018,162516,5256.96,CUMBRIA WASTE RECYCLING LTD,CUM022,Technical Services Manager,material price fluctuations,BS-F-40-17/18,Recycling
Eden District Council,http://opendatacommunities.org/id/district-council/eden,02/01/2018,162539,-930,RIBA PUBLICATIONS,RIB001,Technical Services Manager,Subscriptions & levies,Cancellation of NSB Subscription 2017-18,Technical Services
Eden District Council,http://opendatacommunities.org/id/district-council/eden,12/01/2018,162542,1900,DINSDALE CONTRACTS LTD,DIN005,Legal Services Manager,Planned Maintenance,PATCHING MANSION HOUSE,Land Management
Eden District Council,http://opendatacommunities.org/id/district-council/eden,12/01/2018,162594,926,ELECTRICITY NORTH WEST LTD,ELE005,Technical Services Manager,Building works,LAMP TRAN KELD HEAD STAINTON,Footway Lighting
Eden District Council,http://opendatacommunities.org/id/district-council/eden,12/01/2018,162611,660,THE CUMBRIA CLOCK COMPANY,CUM026,Technical Services Manager,Building Maintenance,MAINTENANCE OF PUBLIC CLOCKS,Provision of Ameneties
Eden District Council,http://opendatacommunities.org/id/district-council/eden,12/01/2018,162614,997,LAND USE CONSULTANTS LTD,LAN015,Commercial Services Manager,Government grants,LAND SEARCH TIME/EXPENSES,Economic Development and Promotion
Eden District Council,http://opendatacommunities.org/id/district-council/eden,12/01/2018,162377,1009,ELECTRICITY NORTH WEST LTD,ELE005,Technical Services Manager,Building works,LAMP RECON SWINBURN FARM SKELTON,Footway Lighting
Eden District Council,http://opendatacommunities.org/id/district-council/eden,12/01/2018,162536,1247.07,HEATONS OFFICE SOLUTIONS LTD,LAK004,Human Resources Manager,Workforce Development Plan Activity,STATIONERY/PAPER/CHAIR,Staff Development
Eden District Council,http://opendatacommunities.org/id/district-council/eden,12/01/2018,162595,926,ELECTRICITY NORTH WEST LTD,ELE005,Technical Services Manager,Building works,LAMP TRAN FAIRYBEAD PARK STAINTON,Footway Lighting
Eden District Council,http://opendatacommunities.org/id/district-council/eden,12/01/2018,162577,705,AMEY PLC,TFE001,Technical Services Manager,Refuse Contract Dayworks,RC60,Refuse Collection
Eden District Council,http://opendatacommunities.org/id/district-council/eden,12/01/2018,162580,605.98,GATESTRAVEL,GAT004,Legal Services Manager,Member expenses,RAIL FARES/ACCOMODATION,Committee and Member Costs
Eden District Council,http://opendatacommunities.org/id/district-council/eden,12/01/2018,162581,560.5,PENRITH PLAYERS THEATRE LTD,PEN002,Commercial Services Manager,Commission,TICKET SALES A ROCKIN GOOD CHRISTMAS,Penrith TIC Trading Account
Eden District Council,http://opendatacommunities.org/id/district-council/eden,12/01/2018,162597,2958.59,VODAFONE LTD,VOD003,Information Technology Manager,Government Connect,SERVICES,Information Technology
Eden District Council,http://opendatacommunities.org/id/district-council/eden,12/01/2018,162600,938.62,NEOPOST FINANCE LIMITED,NEO003,Corporate Services Manager,Postages,2 x FRANKING MACHINES MAINTENANCE,Central Expenses
Eden District Council,http://opendatacommunities.org/id/district-council/eden,12/01/2018,162602,500,LOWTHER ESTATE TRUST,LOW007,Commercial Services Manager,Subscriptions & levies,CLIFTON SIGNBOARD 2018,Economic Development and Promotion
Eden District Council,http://opendatacommunities.org/id/district-council/eden,12/01/2018,162617,1591.17,AMEY PLC,TFE001,Technical Services Manager,Street Cleaning Contract,SC51,Street Cleaning
Eden District Council,http://opendatacommunities.org/id/district-council/eden,12/01/2018,162621,686.67,AMEY PLC,TFE001,Technical Services Manager,Refuse Contract Dayworks,RC59,Refuse Collection
Eden District Council,http://opendatacommunities.org/id/district-council/eden,12/01/2018,162622,2400,WYG ENVIRONMENT PLANNING TRANSPORT,WYG001,Commercial Services Manager,Professional fees,72 HOUR NOISE SURVEY,Economic Development and Promotion
Eden District Council,http://opendatacommunities.org/id/district-council/eden,12/01/2018,162549,885,PRO-TECT UK SECURITY & TRAINING LTD,PRO005,Legal Services Manager,Grants and contributions,DOOR SUPERVISORS W/E 24.12.17,Crime & Disorder Reduction Partnership
Eden District Council,http://opendatacommunities.org/id/district-council/eden,12/01/2018,162557,983.32,NPOWER LTD,NPO001,Technical Services Manager,Electricity,TOWN HALL NOV 17,Administrative Buildings
Eden District Council,http://opendatacommunities.org/id/district-council/eden,12/01/2018,162567,821.17,NPOWER LTD,NPO001,Technical Services Manager,Electricity,MANSION HOUSE DEC 16/JAN 17,Administrative Buildings
Eden District Council,http://opendatacommunities.org/id/district-council/eden,12/01/2018,162568,-828.73,NPOWER LTD,NPO001,Technical Services Manager,Electricity,MANSION HOUSE  DEC16-JAN 17 LGU3SL2S,Administrative Buildings
Eden District Council,http://opendatacommunities.org/id/district-council/eden,12/01/2018,162369,2155.02,ELECTORAL REFORM SERVICES,ELE002,Commercial Services Manager,Business Engagement,EDEN BID BALLOT 2017,Economic Development and Promotion
Eden District Council,http://opendatacommunities.org/id/district-council/eden,12/01/2018,162370,15949.6,SOUTH LAKELAND DISTRICT COUNCIL,SOU006,None,Professional fees,DIGITAL SERVICE CHGS-40% INFORM CONSULT,Corporate Costs
Eden District Council,http://opendatacommunities.org/id/district-council/eden,12/01/2018,162376,926,ELECTRICITY NORTH WEST LTD,ELE005,Technical Services Manager,Building works,LAMP TRAN EDEN COTTAGE CULGAITH,Footway Lighting
Eden District Council,http://opendatacommunities.org/id/district-council/eden,12/01/2018,162506,1200,PURCELL MILLER TRITTON LLP,PUR010,Commercial Services Manager,Professional fees,HIGH MILL ALSTON,Economic Development and Promotion
Eden District Council,http://opendatacommunities.org/id/district-council/eden,12/01/2018,162510,694.77,CORONA ENERGY,COR003,Technical Services Manager,Gas,TOWN HALL 17/11-17/12/17,Administrative Buildings
Eden District Council,http://opendatacommunities.org/id/district-council/eden,12/01/2018,162514,2939.68,AMEY PLC,TFE001,Technical Services Manager,FL  Contract,FL-07/2017,Footway Lighting
Eden District Council,http://opendatacommunities.org/id/district-council/eden,12/01/2018,162523,520,CIPFA,CIP001,Financial Services Manager,"Books, publications",TREASURY MANAGEMENT/CODE FOR CAPITAL FIN,Financial Services
Eden District Council,http://opendatacommunities.org/id/district-council/eden,12/01/2018,162528,2140,ARMATHWAITE OLD SCHOOL HALL COMMITTEE,ARM005,Commercial Services Manager,Balance Sheet entry BS,FINAL 25% EDEN COMMUNITY FUND,Community
Eden District Council,http://opendatacommunities.org/id/district-council/eden,12/01/2018,162530,11533,GRANT THORNTON UK LLP,THO026,Financial Services Manager,Audit fee,16/17 EXTERNAL AUDIT FEE VARIATION,Corporate Costs
Eden District Council,http://opendatacommunities.org/id/district-council/eden,12/01/2018,162535,9750,ARLINGCLOSE LTD,ARL002,Financial Services Manager,Professional fees,ADVISORY SERVICE PERIOD 17/18,Treasury Management
Eden District Council,http://opendatacommunities.org/id/district-council/eden,12/01/2018,162543,1744.98,R BRENNAND ENGINEERING LIMITED,BRE004,Technical Services Manager,Rent,UNIT 1 K/THORE RENT /MAINT JAN/MARCH 18,Administrative Buildings
Eden District Council,http://opendatacommunities.org/id/district-council/eden,19/01/2018,162681,810,DYNAMIC JOINERY LTD,DYN004,Technical Services Manager,"Badges, plates, signs",INSTALL STREET SIGNS,Provision of Ameneties
Eden District Council,http://opendatacommunities.org/id/district-council/eden,19/01/2018,162683,1125,GRAITEC LTD,GRA030,Technical Services Manager,Software � purchase,ANNUAL SUBSCRIPTION 2018,Technical Services
Eden District Council,http://opendatacommunities.org/id/district-council/eden,19/01/2018,162513,565.75,MORGAN HUNT UK LTD,MOR031,Revenue/Benefits Manager,Supplies general, 17/12/17,Collection of Local Taxation
Eden District Council,http://opendatacommunities.org/id/district-council/eden,19/01/2018,162531,927.2,UNITED UTILITIES WATER PLC,UNI024,Environmental Services,Professional fees,FS/WT ANALYSIS NOV17,Other Environmental Health
Eden District Council,http://opendatacommunities.org/id/district-council/eden,19/01/2018,162582,1857.5,CAPITA PROPERTY & INFRASTRUCTURE LTD,CAP002,Planning Services,Professional fees,ARB CONSULTANCY PLANNING DEC 17,Environmental Enhancement & Conservation
Eden District Council,http://opendatacommunities.org/id/district-council/eden,19/01/2018,162612,2833.25,WALTON GOODLAND LTD,WAL008,Commercial Services Manager,Professional fees,RATE FOR SURVEYOR DEC 17,Economic Development and Promotion
Eden District Council,http://opendatacommunities.org/id/district-council/eden,19/01/2018,162650,1665.53,VODAFONE BUSINESS SOLUTIONS,VOD002,Information Technology Manager,Mobile telephone,54 MOIBILES,Information Technology
Eden District Council,http://opendatacommunities.org/id/district-council/eden,19/01/2018,162659,749.47,NPOWER LTD,NPO001,Technical Services Manager,Electricity,MANSION HOUSE 0112-31/12/17,Administrative Buildings
Eden District Council,http://opendatacommunities.org/id/district-council/eden,19/01/2018,162660,4716.78,E.ON UK PLC,EON001,Technical Services Manager,Electricity,STREET LIGHTING 01/12-31/12/17,Footway Lighting
Eden District Council,http://opendatacommunities.org/id/district-council/eden,19/01/2018,162665,1600,redacted information,BAI019,Director of Finance,Grants and contributions,PLFRG EDC16322 2ND PAY,Floods2015
Eden District Council,http://opendatacommunities.org/id/district-council/eden,15/01/2018,162734,1295,DATA PROTECTION,DAT003,Legal Services Manager,Data protection act registration,37 COUNCILLORS - NEW DDR DATA PROTECTION REGISTRATION 15/01/18,Communications Services
Eden District Council,http://opendatacommunities.org/id/district-council/eden,26/01/2018,162776,624,ELECTRICITY NORTH WEST LTD,ELE005,Technical Services Manager,Professional fees,LAMP DISC PENFOLD COTT NEWBY,Footway Lighting
Eden District Council,http://opendatacommunities.org/id/district-council/eden,26/01/2018,162819,1675.38,AMEY PLC,TFE001,Technical Services Manager,Planned Maintenance,REDECORATE AS PER QUOTE Q17036,Administrative Buildings
Eden District Council,http://opendatacommunities.org/id/district-council/eden,18/01/2018,162848,1569,BUSY BEES CHILDCARE VOUCHERS,BUS004,Commercial Services Manager,Child Care Voucher Scheme,CHILDCARE VOUCHERS JANUARY 18 DDR,Commercial Services
Eden District Council,http://opendatacommunities.org/id/district-council/eden,26/01/2018,162667,113370,THOMAS ARMSTRONG (CONSTRUCTION) LTD,THO001,Technical Services Manager,Balance Sheet entry BS,NEW BOILERS PENRITH LEISURE CENTRE,Eden Leisure Centre & Appleby Swimming P
Eden District Council,http://opendatacommunities.org/id/district-council/eden,26/01/2018,162765,5264.24,CUMBRIA MAILING SERVICES LTD,CUM011,Revenue/Benefits Manager,Postages,"19,512 ITEMS CITIPOST",Revenue & Benefits
Eden District Council,http://opendatacommunities.org/id/district-council/eden,26/01/2018,162766,2369.97,CUMBRIA MAILING SERVICES LTD,CUM011,Revenue/Benefits Manager,Printing and stationary,ENVELOPE INSERTION FOLDING ETC,Revenue & Benefits
Eden District Council,http://opendatacommunities.org/id/district-council/eden,26/01/2018,162744,4380.38,EASIBATHE LTD,EAS006,Environmental Services,Capital grants,37104/84 ,1996 Mandatory Renovation Grants
Eden District Council,http://opendatacommunities.org/id/district-council/eden,26/01/2018,162746,1127.76,FIELD VIEW ELECTRICAL LTD,FIE002,Environmental Services,Capital grants,9799/19 KIRKBY THORE,1996 Mandatory Renovation Grants
Eden District Council,http://opendatacommunities.org/id/district-council/eden,26/01/2018,162747,758.39,CHUBB ELECTRONIC SECURITY,CHU001,Financial Services Manager,Balance brought forward BS,ANNUAL CONTRACT 20/3/18-19/3/19,Administrative Buildings
Eden District Council,http://opendatacommunities.org/id/district-council/eden,26/01/2018,162748,1777.94,CHUBB ELECTRONIC SECURITY,CHU001,Financial Services Manager,Balance brought forward BS,ANNUAL CONTRACT 20/3/18-19/3/19,Administrative Buildings
Eden District Council,http://opendatacommunities.org/id/district-council/eden,26/01/2018,162750,544.44,AMEY PLC,TFE001,Technical Services Manager,Commercial Refuse collection,TOWN HALL 1/1/18-31/3/18,Administrative Buildings
Eden District Council,http://opendatacommunities.org/id/district-council/eden,26/01/2018,162751,1550,J R EDGAR JOINERY AND BUILDING LTD,EDG004,Environmental Services,Capital grants,02/01/18 ,1996 Mandatory Renovation Grants
Eden District Council,http://opendatacommunities.org/id/district-council/eden,26/01/2018,162752,645,NORTH LAKES GLASS GLAZING LTD,NOR036,Environmental Services,Capital grants,23240/,1996 Mandatory Renovation Grants
Eden District Council,http://opendatacommunities.org/id/district-council/eden,26/01/2018,162753,11285.58,CARLISLE CITY COUNCIL,CAR015,,Balance Sheet entry BS,PARLIAMENTARY ELECTION RECHARGE 2017,Holding Accounts
Eden District Council,http://opendatacommunities.org/id/district-council/eden,26/01/2018,162764,15800,APPLEBY HERITAGE CENTRE,APP008,Commercial Services Manager,Grants and contributions,APPRENTICE GRANT 4TH INSTALMENT,Economic Development and Promotion
Eden District Council,http://opendatacommunities.org/id/district-council/eden,26/01/2018,162767,2000,NEOPOST LIMITED,NEO001,Corporate Services Manager,Postages,NEOPOST REFILL,Central Expenses
Eden District Council,http://opendatacommunities.org/id/district-council/eden,26/01/2018,162769,930,HALAROSE LIMITED,HAL013,Legal Services Manager,Training Expenses,WORKSHOP,Register of Electors
Eden District Council,http://opendatacommunities.org/id/district-council/eden,26/01/2018,162778,608.4,AMEY PLC,TFE001,Technical Services Manager,Commercial Refuse collection,service charge  cemetery jan/mar 18,Cemeteries
Eden District Council,http://opendatacommunities.org/id/district-council/eden,26/01/2018,162844,2500,CARLETON PARK DEVELOPMENT GROUP,CAR059,Commercial Services Manager,Balance Sheet entry BS,ECF164 FINAL PAY,Community
Eden District Council,http://opendatacommunities.org/id/district-council/eden,26/01/2018,162874,3486.43,AMEY PLC,TFE001,Technical Services Manager,Street Cleaning Contract,SC52,Street Cleaning
Eden District Council,http://opendatacommunities.org/id/district-council/eden,26/01/2018,162375,1118.47,ROYAL MAIL NW,ROY001,Revenue/Benefits Manager,Postages,POSTAGE 22/11-12/12/17,Revenue & Benefits
Eden District Council,http://opendatacommunities.org/id/district-council/eden,26/01/2018,162666,2839.48,Konica Minolta Business Solutions UK Limited,KON003,Information Technology Manager,Printers Contract,PRINTER CHARGES 1/10/17- 31/12/17,Information Technology
Eden District Council,http://opendatacommunities.org/id/district-council/eden,26/01/2018,162674,3796,CARLISLE CITY COUNCIL,CAR015,Technical Services Manager,Contract parking Service,OFF STREET CASH COLL Q3 01/10-31/12/17,Vehicle Parking Off Street
Eden District Council,http://opendatacommunities.org/id/district-council/eden,26/01/2018,162676,1250,DUFTON VILLAGE HALL,DUF002,Commercial Services Manager,Balance Sheet entry BS,ECF208,Community
Eden District Council,http://opendatacommunities.org/id/district-council/eden,26/01/2018,162678,2099.41,HALAROSE LIMITED,HAL013,Legal Services Manager,Miscellaneous,HERA SET-UP CHARGE,Register of Electors
Eden District Council,http://opendatacommunities.org/id/district-council/eden,26/01/2018,162682,2939.68,AMEY PLC,TFE001,Technical Services Manager,FL  Contract,FL-10/2017,Footway Lighting
Eden District Council,http://opendatacommunities.org/id/district-council/eden,26/01/2018,162685,4164.42,Konica Minolta Business Solutions UK Limited,KON003,Information Technology Manager,Printers Contract,FLAT RATE PERIOD,Information Technology
Eden District Council,http://opendatacommunities.org/id/district-council/eden,26/01/2018,162688,844.2,ADT FIRE AND SECURITY,ADT001,Technical Services Manager,Rental/Maintenance of Door Entry System,MAINTENANCE 2018/19,Administrative Buildings
Eden District Council,http://opendatacommunities.org/id/district-council/eden,26/01/2018,162689,17435.76,AMEY PLC,TFE001,Environmental Services,Street Cleaning Contract,M-SC70,Appleby Fair
Eden District Council,http://opendatacommunities.org/id/district-council/eden,26/01/2018,162690,7600.72,CUMBRIA WASTE RECYCLING LTD,CUM022,Technical Services Manager,Recycling  - Bring Sites,BS-61,Recycling
Eden District Council,http://opendatacommunities.org/id/district-council/eden,26/01/2018,162737,67452.3,AMEY PLC,TFE001,Technical Services Manager,Contract refuse collection,M-RC70,Refuse Collection
Eden District Council,http://opendatacommunities.org/id/district-council/eden,26/01/2018,162738,20171.54,CUMBRIA WASTE RECYCLING LTD,CUM022,Technical Services Manager,Recycling - Bag & Box,GB-09-17/18,Recycling
Eden District Council,http://opendatacommunities.org/id/district-council/eden,26/01/2018,162739,22298.79,CUMBRIA WASTE RECYCLING LTD,CUM022,Technical Services Manager,Recycling - Garden Waste,GW-09-17/18,Recycling
Eden District Council,http://opendatacommunities.org/id/district-council/eden,02/02/2018,162937,926,ELECTRICITY NORTH WEST LTD,ELE005,Technical Services Manager,Building works,LAMP TRANS STONELEIGH KIRKOSWALD,Footway Lighting
Eden District Council,http://opendatacommunities.org/id/district-council/eden,02/02/2018,162938,624,ELECTRICITY NORTH WEST LTD,ELE005,Technical Services Manager,Professional fees,LAMP DISCON ST PAULS CHURCH POOLEY BRIDGE,Footway Lighting
Eden District Council,http://opendatacommunities.org/id/district-council/eden,02/02/2018,162968,1355,GREENWICH LEISURE LTD,NCL001,Technical Services Manager,Other charges for services,HOOVER FOR EDEN BOWLS CENTRE,Arts and Leisure
Eden District Council,http://opendatacommunities.org/id/district-council/eden,02/02/2018,162971,3500,GREENWICH LEISURE LTD,NCL001,Technical Services Manager,Other charges for services,BETTER HEALTHY LIVING RECHARGE 2017/18,Arts and Leisure
Eden District Council,http://opendatacommunities.org/id/district-council/eden,02/02/2018,162972,4000,GREENWICH LEISURE LTD,NCL001,Technical Services Manager,Building Maintenance - Leisure,REPLACE LIGHT FITTINGS IN LEARNER POOL,Eden Leisure Centre & Appleby Swimming P
Eden District Council,http://opendatacommunities.org/id/district-council/eden,02/02/2018,162976,600,KAREN MACDOUGALL MA DIP ARCH,MCD001,Commercial Services Manager,Other charges for services,DESIGN MOUNT AND PUBLICITY JACOB THOMPSON,Museum
Eden District Council,http://opendatacommunities.org/id/district-council/eden,02/02/2018,162977,624,ELECTRICITY NORTH WEST LTD,ELE005,Technical Services Manager,Professional fees,LAMP DISC SORING COTT MELMERBY,Footway Lighting
Eden District Council,http://opendatacommunities.org/id/district-council/eden,02/02/2018,162980,6735.71,IT PROFESSIONAL SERVICES LTD,ITP001,Information Technology Manager,Telephone,CONTRACT FOR COMMUNICATIONS,Central Expenses
Eden District Council,http://opendatacommunities.org/id/district-council/eden,02/02/2018,153276,652.68,AMEY PLC,TFE001,Technical Services Manager,Building Maintenance,NEW HAND DRIER,Public Conveniences
Eden District Council,http://opendatacommunities.org/id/district-council/eden,02/02/2018,154299,1550.09,AMEY PLC,TFE001,Technical Services Manager,Building Maintenance,ADDITIONAL SERVICES,Public Conveniences
Eden District Council,http://opendatacommunities.org/id/district-council/eden,02/02/2018,155835,948.03,AMEY PLC,TFE001,Technical Services Manager,Planned Maintenance,INSTALL NEW LIGHTS ATTIC,Administrative Buildings
Eden District Council,http://opendatacommunities.org/id/district-council/eden,02/02/2018,162113,1990,J RICHARDSON & SON,RIC004,Technical Services Manager,GroundsMaintenanceSeats&AmenitiesProvSum,BURMA TEAK BENCHES,Parks and Open Spaces
Eden District Council,http://opendatacommunities.org/id/district-council/eden,02/02/2018,162771,926,ELECTRICITY NORTH WEST LTD,ELE005,Technical Services Manager,Building works,LAMP TRANS BROCkLEY MOOR PLUMPTON,Footway Lighting
Eden District Council,http://opendatacommunities.org/id/district-council/eden,02/02/2018,162772,926,ELECTRICITY NORTH WEST LTD,ELE005,Technical Services Manager,Building works,LAMP TRANS POST OFF CALTHWAITE,Footway Lighting
Eden District Council,http://opendatacommunities.org/id/district-council/eden,02/02/2018,162773,926,ELECTRICITY NORTH WEST LTD,ELE005,Technical Services Manager,Building works,LAMP TRANS DOG/GUN SKELTON,Footway Lighting
Eden District Council,http://opendatacommunities.org/id/district-council/eden,02/02/2018,162774,926,ELECTRICITY NORTH WEST LTD,ELE005,Technical Services Manager,Building works,LAMP TRAN DUNFELL VIEW K/THORE,Footway Lighting
Eden District Council,http://opendatacommunities.org/id/district-council/eden,02/02/2018,162775,1009,ELECTRICITY NORTH WEST LTD,ELE005,Technical Services Manager,Building works,LAMP TRAN QUARRY BANK DUFTON,Footway Lighting
Eden District Council,http://opendatacommunities.org/id/district-council/eden,02/02/2018,162825,964.17,NORTH LAKES GLASS GLAZING LTD,NOR036,Technical Services Manager,Planned Maintenance,supply & fit2no windowa,Administrative Buildings
Eden District Council,http://opendatacommunities.org/id/district-council/eden,02/02/2018,162831,1801.01,AMEY PLC,TFE001,Technical Services Manager,Planned Maintenance,NEW WINDOW IN BUS SHELTER,Provision of Ameneties
Eden District Council,http://opendatacommunities.org/id/district-council/eden,02/02/2018,162892,6975,NORTHGATE PUBLIC SERVICES (UK) LTD,NOR042,Revenue/Benefits Manager,Software � purchase,PARIS CONTACTLESS SET UP,Revenue & Benefits
Eden District Council,http://opendatacommunities.org/id/district-council/eden,02/02/2018,162949,1031.11,NPOWER LTD,NPO001,Technical Services Manager,Electricity,TOWN HALL,Administrative Buildings
Eden District Council,http://opendatacommunities.org/id/district-council/eden,02/02/2018,162966,3647.83,CUMBRIA WASTE RECYCLING LTD,CUM022,Technical Services Manager,material price fluctuations,F-09-17/18,Recycling
Eden District Council,http://opendatacommunities.org/id/district-council/eden,02/02/2018,162973,1090.5,CUMBRIA COUNTY COUNCIL,CCC002,Technical Services Manager,Professional fees,LLC CON29 SEARCHES,Land Charges
Eden District Council,http://opendatacommunities.org/id/district-council/eden,02/02/2018,162978,902,CUMBRIA COUNTY COUNCIL,CCC002,Technical Services Manager,Professional fees,QUARTERLY COMMONS SEARCH OCT-DEC 2017,Land Charges
Eden District Council,http://opendatacommunities.org/id/district-council/eden,02/02/2018,162983,1285.38,PRINT IMAGE FACILITIES LLP,PRI014,Financial Services Manager,Balance Sheet entry BS,CARR HOUSE NPR ELECTION POSTAGE,Holding Accounts
Eden District Council,http://opendatacommunities.org/id/district-council/eden,02/02/2018,148976,1011.98,AMEY PLC,TFE001,Legal Services Manager,Building Maintenance,TIDY STORES/COLLECT SCRAP METAL,Land Management
Eden District Council,http://opendatacommunities.org/id/district-council/eden,02/02/2018,158868,837.98,AMEY PLC,TFE001,Technical Services Manager,Planned Maintenance,PENRITH CEMETERY,Cemeteries
Eden District Council,http://opendatacommunities.org/id/district-council/eden,02/02/2018,162234,3889.16,SOUTH LAKELAND DISTRICT COUNCIL,SOU006,Information Technology Manager,Software � maintenance,CWSI ANNUAL SUB/MAINTENANCE 17/18,Information Technology
Eden District Council,http://opendatacommunities.org/id/district-council/eden,02/02/2018,162345,2170.88,CUMBRIA COUNTY COUNCIL,CCC002,Director of Finance,Miscellaneous,REIMBURSEMENT BUSINESS RATES,Director of Finance
Eden District Council,http://opendatacommunities.org/id/district-council/eden,02/02/2018,162519,8850,TIAA LTD,TIA001,Director of Finance,Professional fees,INTERNAL AUDIT SERVICES PROVIDED,Director of Finance
Eden District Council,http://opendatacommunities.org/id/district-council/eden,02/02/2018,162546,925,LAMBERT SMITH HAMPTON,LAM009,Environmental Services,Professional fees,VALUATION CONSULTANCY,Housing Delivery
Eden District Council,http://opendatacommunities.org/id/district-council/eden,02/02/2018,162618,671.13,NEWSQUEST NORTHWEST LTD,NEW007,Technical Services Manager,Advertising,REFUSE DATE ADVERTS,Refuse Collection
Eden District Council,http://opendatacommunities.org/id/district-council/eden,02/02/2018,162663,2887.74,CUMBRIA COUNTY COUNCIL,CCC002,Technical Services Manager,Contract parking Service,12 WEEKS PATROLS/106 PCN'S,Vehicle Parking Off Street
Eden District Council,http://opendatacommunities.org/id/district-council/eden,02/02/2018,162755,13330.58,HALAROSE LIMITED,HAL013,Legal Services Manager,Software � maintenance,ANNUAL SUPPORT & MAINTENANCE,Elections
Eden District Council,http://opendatacommunities.org/id/district-council/eden,02/02/2018,162843,7641,I G E CROPLEY,CRO009,Environmental Services,Decent Homes Grants,28/ ALSTON,1996 Discretionary Renovation Grants
Eden District Council,http://opendatacommunities.org/id/district-council/eden,02/02/2018,162846,576.6,APPLEBY TOWN COUNCIL,APP001,Financial Services Manager,Balance Sheet entry BS,FAWCETT BEQUEST PAYMENT,Holding Accounts
Eden District Council,http://opendatacommunities.org/id/district-council/eden,02/02/2018,162871,988,THE KNACK DESIGN CONSULTANTS LTD,KNA001,Communities Director,Promotions,REPAIRS TOWN CENTRE SIGNS,Economic Development and Promotion
Eden District Council,http://opendatacommunities.org/id/district-council/eden,02/02/2018,162919,3705.75,MLL TELECOM LTD,MLL001,Information Technology Manager,IT Contracts & Maintenance,RENTALS,Information Technology
Eden District Council,http://opendatacommunities.org/id/district-council/eden,02/02/2018,162931,1189,SISSONS DECORATORS,SIS003,Commercial Services Manager,Professional fees,INTERNAL DECORATION 4A CORNEY SQUARE,Economic Development and Promotion
Eden District Council,http://opendatacommunities.org/id/district-council/eden,02/02/2018,162933,975,XEROX FINANCE,XER003,Financial Services Manager,Balance brought forward BS,RENT 24.02.18-23.05.18,Information Technology
Eden District Council,http://opendatacommunities.org/id/district-council/eden,02/02/2018,162941,883.3,CORONA ENERGY,COR003,Technical Services Manager,Gas,TOWN HALL,Administrative Buildings
Eden District Council,http://opendatacommunities.org/id/district-council/eden,02/02/2018,162943,581.3,CORONA ENERGY,COR003,Technical Services Manager,Gas,MANSION HOUSE,Administrative Buildings
Eden District Council,http://opendatacommunities.org/id/district-council/eden,43130,175861,188218,Eden Housing association,EHA001,Environmental Services,Loans Raised BS,housing innovation fund loan,Housing Capital
